fUSD/lending_fUSD_20240614
["ID","MTS","AMOUNT","RATE_DAILY","PERIOD"]
[329469483,1718382549145,-500.0,0.00024657,3]
[329469484,1718382549232,-673.4,0.00024657,3]
[329469485,1718382549355,-500.0,0.00024657,3]
[329469486,1718382549424,-780.74,0.00024657,3]
[329469487,1718382549498,-788.58,0.00024657,3]
[329469488,1718382549570,-593.08,0.00024657,3]
[329469489,1718382549661,-500.0,0.00024657,3]
[329469490,1718382549751,-669.21,0.00024657,3]
[329469491,1718382549847,-718.4,0.00024657,3]
[329469492,1718382549952,-500.0,0.00024657,3]
[329469493,1718382550040,-151.0,0.00024657,7]
[329469494,1718382550129,-736.96,0.00024657,3]
[329469495,1718382550306,-500.0,0.00024657,3]
[329469496,1718382550418,-500.0,0.00024657,3]
[329469497,1718382550508,-874.68,0.00024657,3]
[329469498,1718382550602,-500.0,0.00024657,3]
[329469499,1718382550714,-500.0,0.00024657,3]
[329469500,1718382550785,-527.03,0.00024657,3]
[329469501,1718382550901,-597.81485485,0.00024657,3]
[329469502,1718382550980,-507.96,0.00024657,3]
[329469503,1718382551099,-500.0,0.00024657,3]
[329469504,1718382551179,-1264.49,0.00024657,3]
[329469505,1718382551254,-151.0,0.00024657,7]
[329469506,1718382551324,-500.0,0.00024657,3]
[329469507,1718382551468,-500.0,0.00024657,3]
[329469508,1718382551578,-500.0,0.00024657,3]
[329469509,1718382551664,-500.0,0.00024657,3]
[329469510,1718382551748,-1221.95,0.00024657,3]
[329469511,1718382551855,-500.0,0.00024657,3]
[329469512,1718382551945,-619.85273737,0.00024657,3]
[329469513,1718382552019,-500.0,0.00024657,3]
[329469514,1718382552092,-1101.58,0.00024657,3]
[329469515,1718382552221,-500.0,0.00024657,3]
[329469516,1718382552321,-854.23,0.00024657,3]
[329469517,1718382552426,-1320.74,0.00024657,3]
[329469518,1718382552497,-500.0,0.00024657,3]
[329469519,1718382552569,-500.0,0.00024657,3]
[329469520,1718382552659,-500.0,0.00024657,3]
[329469521,1718382552721,-500.0,0.00024657,3]
[329469522,1718382552791,-500.0,0.00024657,3]
[329469523,1718382552880,-500.0,0.00024657,3]
[329469524,1718382552983,-500.0,0.00024657,3]
[329469525,1718382553053,-670.88,0.00024657,3]
[329469526,1718382553198,-574.95,0.00024657,3]
[329469527,1718382553324,-500.0,0.00024657,3]
[329469528,1718382553459,-500.0,0.00024657,3]
[329469529,1718382553558,-620.57472417,0.00024657,3]
[329469530,1718382553630,-500.0,0.00024657,3]
[329469531,1718382553701,-500.0,0.00024657,3]
[329469532,1718382553825,-500.0,0.00024657,3]
[329469533,1718382553897,-500.0,0.00024657,3]
[329469534,1718382553991,-1734.14,0.00024657,3]
[329469535,1718382554071,-612.09,0.00024657,3]
[329469536,1718382554198,-500.0,0.00024657,3]
[329469537,1718382554652,-500.0,0.00024657,3]
[329469538,1718382554772,-500.0,0.00024657,3]
[329469539,1718382554861,-500.0,0.00024657,3]
[329469540,1718382554943,-673.58,0.00024657,3]
[329469541,1718382555027,-500.0,0.00024657,3]
[329469542,1718382555093,-633.38,0.00024657,3]
[329469543,1718382555234,-500.0,0.00024657,3]
[329469544,1718382555366,-538.68,0.00024657,3]
[329469545,1718382555644,-544.92131593,0.00024657,3]
[329469546,1718382555731,-244.93086072,0.00024657,3]
[329469547,1718382555821,-624.88,0.00024657,3]
[329469548,1718382555891,-1004.01,0.00024657,3]
[329469549,1718382556013,-597.68,0.00024657,3]
[329469550,1718382556086,-733.92,0.00024657,3]
[329469551,1718382556194,-500.0,0.00024657,3]
[329469552,1718382556320,-500.0,0.00024657,3]
[329469553,1718382556412,-510.37,0.00024657,3]
[329469554,1718382556530,-500.0,0.00024657,3]
[329469555,1718382556619,-500.0,0.00024657,3]
[329469556,1718382556698,-763.72,0.00024657,3]
[329469557,1718382556745,-521.38,0.00024657,3]
[329469558,1718382556819,-500.0,0.00024657,3]
[329469559,1718382556893,-500.0,0.00024657,3]
[329469560,1718382556979,-500.0,0.00024657,3]
[329469561,1718382557057,-500.0,0.00024657,3]
[329469562,1718382557144,-500.0,0.00024657,3]
[329469563,1718382557216,-500.0,0.00024657,3]
[329469564,1718382557327,-618.42,0.00024657,3]
[329469565,1718382557516,-540.25,0.00024657,3]
[329469566,1718382557577,-500.0,0.00024657,3]
[329469567,1718382557652,-500.0,0.00024657,3]
[329469568,1718382557730,-500.0,0.00024657,3]
[329469569,1718382557806,-500.0,0.00024657,3]
[329469570,1718382557878,-500.0,0.00024657,3]
[329469571,1718382557944,-500.0,0.00024657,3]
[329469572,1718382558043,-500.0,0.00024657,3]
[329469573,1718382558129,-640.05,0.00024657,3]
[329469574,1718382558208,-590.79,0.00024657,3]
[329469575,1718382558301,-500.0,0.00024657,3]
[329469576,1718382558383,-500.0,0.00024657,3]
[329469577,1718382558486,-500.0,0.00024657,3]
[329469578,1718382558532,-500.0,0.00024657,3]
[329469579,1718382558604,-899.12,0.00024657,3]
[329469580,1718382558676,-1087.94,0.00024657,3]
[329469581,1718382558736,-500.0,0.00024657,3]
[329469582,1718382558790,-619.45,0.00024657,3]
[329469583,1718382558893,-500.0,0.00024657,3]
[329469584,1718382558951,-511.68,0.00024657,3]
[329469585,1718382559018,-1789.44,0.00024657,3]
[329469586,1718382559071,-500.0,0.00024657,3]
[329469587,1718382559129,-501.34,0.00024657,3]
[329469588,1718382559225,-500.0,0.00024657,3]
[329469589,1718382559286,-713.67,0.00024657,3]
[329469590,1718382559350,-500.0,0.00024657,3]
[329469591,1718382559407,-500.0,0.00024657,3]
[329469592,1718382559487,-548.11,0.00024657,3]
[329469593,1718382559536,-500.0,0.00024657,3]
[329469594,1718382559580,-500.0,0.00024657,3]
[329469595,1718382559645,-20815.16,0.00024657,3]
[329469596,1718382559706,-151.0,0.00024657,7]
[329469597,1718382559771,-500.0,0.00024657,3]
[329469598,1718382559843,-763.77,0.00024657,3]
[329469599,1718382559918,-500.0,0.00024657,3]
[329469600,1718382559982,-500.0,0.00024657,3]
[329469601,1718382560030,-1084.12,0.00024657,3]
[329469602,1718382560107,-500.0,0.00024657,3]
[329469603,1718382560179,-500.0,0.00024657,3]
[329469604,1718382560241,-500.0,0.00024657,3]
[329469605,1718382560335,-500.0,0.00024657,3]
[329469606,1718382560422,-1683.92,0.00024657,3]
[329469607,1718382560486,-1076.42,0.00024657,3]
[329469608,1718382560564,-500.0,0.00024657,3]
[329469609,1718382560669,-500.0,0.00024657,3]
[329469610,1718382560754,-3457.17,0.00024657,3]
[329469611,1718382560818,-500.0,0.00024657,3]
[329469612,1718382560915,-500.0,0.00024657,3]
[329469613,1718382562636,-500.0,0.00024657,3]
[329469614,1718382562844,-424.78155556,0.00024657,3]
[329469615,1718382562915,-512.15,0.00024657,3]
[329469616,1718382563002,-500.0,0.00024657,3]
[329469617,1718382563073,-611.46,0.00024657,3]
[329469618,1718382563175,-500.0,0.00024657,3]
[329469619,1718382563273,-3042.23,0.00024657,3]
[329469620,1718382563369,-914.22,0.00024657,3]
[329469621,1718382563587,-573.96,0.00024657,3]
[329469622,1718382563675,-1909.78,0.00024657,3]
[329469623,1718382563769,-517.33,0.00024657,3]
[329469624,1718382563874,-831.61,0.00024657,3]
[329469625,1718382563974,-662.73,0.00024657,3]
[329469626,1718382564150,-500.0,0.00024657,3]
[329469627,1718382564248,-500.0,0.00024657,3]
[329469628,1718382564325,-500.0,0.00024657,3]
[329469629,1718382564419,-500.0,0.00024657,3]
[329469630,1718382564543,-622.18,0.00024657,3]
[329469631,1718382564632,-606.5,0.00024657,3]
[329469632,1718382564694,-500.0,0.00024657,3]
[329469633,1718382564780,-500.0,0.00024657,3]
[329469634,1718382564884,-500.0,0.00024657,3]
[329469635,1718382564982,-996.64,0.00024657,3]
[329469636,1718382565129,-568.32,0.00024657,3]
[329469637,1718382565186,-697.2,0.00024657,3]
[329469638,1718382565340,-849.21,0.00024657,3]
[329469639,1718382565419,-889.26,0.00024657,3]
[329469640,1718382565513,-500.0,0.00024657,3]
[329469641,1718382565593,-14486.89,0.00024657,3]
[329469642,1718382565682,-500.0,0.00024657,3]
[329469643,1718382565874,-5686.07,0.00024657,3]
[329469644,1718382565949,-781.91,0.00024657,3]
[329469645,1718382565995,-500.0,0.00024657,3]
[329469646,1718382566092,-1018.61,0.00024657,3]
[329469647,1718382566198,-585.92,0.00024657,3]
[329469648,1718382566307,-500.0,0.00024657,3]
[329469649,1718382566385,-2904.62,0.00024657,3]
[329469650,1718382566453,-510.01,0.00024657,3]
[329469651,1718382566595,-500.0,0.00024657,3]
[329469652,1718382566669,-500.0,0.00024657,3]
[329469653,1718382566764,-15237.24,0.00024657,3]
[329469654,1718382566838,-612.61,0.00024657,3]
[329469655,1718382566901,-1011.12,0.00024657,3]
[329469656,1718382566992,-161.68583332,0.00024657,3]
[329469657,1718382567049,-1390.77,0.00024657,3]
[329469658,1718382567113,-774.15,0.00024657,3]
[329469659,1718382567185,-694.51,0.00024657,3]
[329469660,1718382567276,-500.0,0.00024657,3]
[329469661,1718382567363,-500.0,0.00024657,3]
[329469662,1718382567444,-6213.65,0.00024657,3]
[329469663,1718382567517,-500.0,0.00024657,3]
[329469664,1718382567632,-500.0,0.00024657,3]
[329469665,1718382567713,-717.84,0.00024657,3]
[329469666,1718382567784,-500.0,0.00024657,3]
[329469667,1718382567855,-574.18,0.00024657,3]
[329469668,1718382567942,-1073.14,0.00024657,3]
[329469669,1718382567986,-209.07701942,0.00024657,3]
[329469670,1718382568034,-1385.47,0.00024657,3]
[329469671,1718382568097,-500.0,0.00024657,3]
[329469672,1718382568174,-2154.52,0.00024657,3]
[329469673,1718382568227,-1203.6,0.00024657,3]
[329469674,1718382568271,-2128.36,0.00024657,3]
[329469675,1718382568335,-500.0,0.00024657,3]
[329469676,1718382568422,-813.3,0.00024657,3]
[329469677,1718382568492,-679.7,0.00024657,3]
[329469678,1718382568542,-589.82,0.00024657,3]
[329469679,1718382568621,-1485.29,0.00024657,3]
[329469680,1718382568717,-518.56,0.00024657,3]
[329469681,1718382568775,-500.0,0.00024657,3]
[329469682,1718382568831,-6705.15,0.00024657,3]
[329469683,1718382568890,-500.0,0.00024657,3]
[329469684,1718382568984,-1803.99,0.00024657,3]
[329469685,1718382569073,-1009.01,0.00024657,3]
[329469686,1718382569176,-500.0,0.00024657,3]
[329469687,1718382569290,-1256.75,0.00024657,3]
[329469688,1718382569373,-875.23,0.00024657,3]
[329469689,1718382569500,-500.0,0.00024657,3]
[329469690,1718382569612,-1971.49,0.00024657,3]
[329469691,1718382569696,-500.0,0.00024657,3]
[329469693,1718382569755,-2119.55,0.00024657,3]
[329469694,1718382569804,-555.05,0.00024657,7]
[329469697,1718382569935,-500.0,0.00024657,3]
[329469698,1718382569995,-719.59,0.00024657,3]
[329469699,1718382570073,-617.39,0.00024657,3]
[329469700,1718382570208,-500.0,0.00024657,3]
[329469701,1718382570281,-6051.71,0.00024657,3]
[329469702,1718382570379,-500.0,0.00024657,3]
[329469703,1718382570445,-500.0,0.00024657,3]
[329469704,1718382570492,-577.42844564,0.00024657,3]
[329469705,1718382570554,-652.05,0.00024657,3]
[329469706,1718382570613,-2728.66,0.00024657,3]
[329469707,1718382570700,-883.82,0.00024657,3]
[329469708,1718382570753,-500.0,0.00024657,3]
[329469709,1718382570810,-5535.36,0.00024657,3]
[329469710,1718382570907,-500.0,0.00024657,3]
[329469711,1718382571115,-500.0,0.00024657,3]
[329469712,1718382571221,-655.54,0.00024657,3]
[329469713,1718382571345,-500.0,0.00024657,3]
[329469714,1718382571503,-9561.96,0.00024657,3]
[329469715,1718382571589,-675.91,0.00024657,3]
[329469716,1718382571664,-627.05,0.00024657,3]
[329469717,1718382571746,-4005.23,0.00024657,3]
[329469718,1718382571803,-500.0,0.00024657,3]
[329469719,1718382571891,-500.0,0.00024657,3]
[329469720,1718382571950,-3357.65,0.00024657,3]
[329469721,1718382572007,-1343.73,0.00024657,3]
[329469722,1718382572052,-809.51,0.00024657,3]
[329469723,1718382572193,-4519.59,0.00024657,3]
[329469724,1718382572258,-500.0,0.00024657,3]
[329469725,1718382572325,-2215.06,0.00024657,3]
[329469726,1718382572386,-500.0,0.00024657,3]
[329469727,1718382572446,-1739.3,0.00024657,3]
[329469728,1718382572508,-723.48,0.00024657,3]
[329469729,1718382572619,-500.0,0.00024657,3]
[329469730,1718382572709,-1992.44,0.00024657,3]
[329469731,1718382572783,-500.0,0.00024657,3]
[329469732,1718382572835,-772.64,0.00024657,3]
[329469733,1718382572897,-500.0,0.00024657,3]
[329469734,1718382572966,-27747.66,0.00024657,3]
[329469735,1718382573052,-2516.05,0.00024657,3]
[329469736,1718382573152,-151.0,0.00024657,7]
[329469737,1718382573210,-454.81443674,0.00024657,3]
[329469739,1718382573272,-500.0,0.00024657,3]
[329469742,1718382573366,-500.0,0.00024657,3]
[329469743,1718382573426,-1783.93,0.00024657,3]
[329469744,1718382573472,-500.0,0.00024657,3]
[329469745,1718382573530,-1901.93,0.00024657,3]
[329469746,1718382573577,-247.17,0.00024657,3]
[329469747,1718382573630,-450.58886193,0.00024657,3]
[329469748,1718382573687,-835.68,0.00024657,3]
[329469749,1718382573732,-555.72,0.00024657,3]
[329469750,1718382573810,-695.78,0.00024657,3]
[329469751,1718382573979,-500.0,0.00024657,3]
[329469752,1718382574038,-993.02,0.00024657,3]
[329469753,1718382574119,-1219.21,0.00024657,3]
[329469754,1718382574198,-196.25628351,0.00024657,3]
[329469755,1718382574294,-1713.33,0.00024657,3]
[329469756,1718382574388,-500.0,0.00024657,3]
[329469757,1718382574467,-598.03,0.00024657,3]
[329469758,1718382574557,-14613.87,0.00024657,3]
[329469759,1718382574616,-854.03,0.00024657,3]
[329469760,1718382574694,-500.0,0.00024657,3]
[329469761,1718382574751,-664.58,0.00024657,3]
[329469762,1718382574816,-3104.39,0.00024657,3]
[329469763,1718382574916,-769.77,0.00024657,3]
[329469764,1718382574993,-2415.25,0.00024657,3]
[329469765,1718382575059,-1827.85,0.00024657,3]
[329469766,1718382575128,-500.0,0.00024657,3]
[329469767,1718382575217,-1720.0,0.00024657,3]
[329469768,1718382575295,-1564.92,0.00024657,3]
[329469769,1718382575386,-500.0,0.00024657,3]
[329469770,1718382575494,-500.0,0.00024657,3]
[329469771,1718382575581,-500.0,0.00024657,3]
[329469772,1718382575655,-854.39,0.00024657,3]
[329469773,1718382575751,-6387.15,0.00024657,3]
[329469774,1718382575801,-224.02099779,0.00024657,3]
[329469775,1718382575884,-500.0,0.00024657,3]
[329469776,1718382575985,-151.0,0.00024657,7]
[329469777,1718382576086,-13294.24,0.00024657,3]
[329469778,1718382576184,-1580.61,0.00024657,3]
[329469779,1718382576248,-1627.07,0.00024657,3]
[329469780,1718382576349,-500.0,0.00024657,3]
[329469781,1718382576515,-500.0,0.00024657,3]
[329469782,1718382576580,-3930.51,0.00024657,3]
[329469783,1718382576631,-729.5,0.00024657,3]
[329469784,1718382576722,-2355.57,0.00024657,3]
[329469785,1718382576785,-500.0,0.00024657,3]
[329469786,1718382576836,-500.0,0.00024657,3]
[329469787,1718382576932,-319.47558852,0.00024657,3]
[329469788,1718382577011,-19021.1,0.00024657,3]
[329469789,1718382577083,-782.99,0.00024657,3]
[329469790,1718382577143,-500.0,0.00024657,3]
[329469791,1718382577186,-636.02,0.00024657,3]
[329469792,1718382577235,-1333.68,0.00024657,3]
[329469793,1718382577333,-625.4,0.00024657,3]
[329469794,1718382577399,-583.12,0.00024657,3]
[329469795,1718382577541,-601.31,0.00024657,3]
[329469796,1718382577677,-1242.43,0.00024657,3]
[329469797,1718382577775,-924.02,0.00024657,3]
[329469798,1718382577839,-500.0,0.00024657,3]
[329469799,1718382577916,-957.85,0.00024657,3]
[329469800,1718382577999,-1500.69,0.00024657,3]
[329469801,1718382578283,-500.0,0.00024657,3]
[329469802,1718382578409,-4281.66,0.00024657,3]
[329469803,1718382578516,-563.41,0.00024657,3]
[329469804,1718382578602,-1389.67,0.00024657,3]
[329469805,1718382578691,-507.25,0.00024657,3]
[329469806,1718382578794,-500.0,0.00024657,3]
[329469807,1718382578967,-500.0,0.00024657,3]
[329469808,1718382579045,-298.78373248,0.00024657,3]
[329469809,1718382579189,-1388.05,0.00024657,3]
[329469810,1718382579256,-1617.19,0.00024657,3]
[329469811,1718382579350,-907.64,0.00024657,3]
[329469812,1718382579453,-531.36,0.00024657,3]
[329469813,1718382579520,-500.0,0.00024657,3]
[329469814,1718382579607,-666.51,0.00024657,3]
[329469815,1718382579662,-500.0,0.00024657,3]
[329469816,1718382579713,-627.2,0.00024657,3]
[329469817,1718382579768,-4315.64,0.00024657,3]
[329469818,1718382579852,-883.62,0.00024657,3]
[329469819,1718382579938,-6461.18,0.00024657,3]
[329469820,1718382580055,-500.0,0.00024657,3]
[329469821,1718382580135,-566.98,0.00024657,3]
[329469822,1718382580203,-500.0,0.00024657,3]
[329469823,1718382580262,-5001.5,0.00024657,3]
[329469824,1718382580360,-782.35,0.00024657,3]
[329469825,1718382580438,-500.0,0.00024657,3]
[329469826,1718382580515,-500.0,0.00024657,3]
[329469827,1718382580587,-1140.05,0.00024657,3]
[329469828,1718382580673,-2579.99,0.00024657,3]
[329469829,1718382580800,-2308.45,0.00024657,3]
[329469830,1718382580884,-1162.61,0.00024657,3]
[329469831,1718382580946,-151.0,0.00024657,7]
[329469832,1718382581016,-3943.94,0.00024657,3]
[329469833,1718382581114,-500.0,0.00024657,3]
[329469834,1718382581212,-584.26,0.00024657,3]
[329469835,1718382581278,-500.0,0.00024657,3]
[329469836,1718382581370,-500.0,0.00024657,3]
[329469837,1718382581417,-633.7,0.00024657,3]
[329469838,1718382581484,-500.0,0.00024657,3]
[329469839,1718382581559,-632.74,0.00024657,3]
[329469840,1718382581645,-7632.11,0.00024657,3]
[329469841,1718382581720,-287.398323,0.00024657,7]
[329469842,1718382581790,-500.0,0.00024657,3]
[329469843,1718382581860,-500.0,0.00024657,3]
[329469844,1718382581945,-616.61707061,0.00024657,3]
[329469845,1718382582117,-1646.1,0.00024657,3]
[329469846,1718382582224,-808.35,0.00024657,3]
[329469847,1718382582285,-5505.8,0.00024657,3]
[329469848,1718382582367,-2409.52,0.00024657,3]
[329469849,1718382582446,-500.0,0.00024657,3]
[329469850,1718382582557,-9934.23,0.00024657,3]
[329469851,1718382582650,-500.0,0.00024657,3]
[329469852,1718382582718,-500.0,0.00024657,3]
[329469853,1718382582844,-500.0,0.00024657,3]
[329469854,1718382582934,-718.69,0.00024657,3]
[329469855,1718382583057,-1962.95,0.00024657,3]
[329469856,1718382583149,-500.0,0.00024657,3]
[329469857,1718382583217,-10300.99,0.00024657,3]
[329469858,1718382583315,-7744.77,0.00024657,3]
[329469859,1718382583404,-10981.89,0.00024657,3]
[329469860,1718382583512,-955.12,0.00024657,3]
[329469861,1718382583595,-9214.75,0.00024657,3]
[329469862,1718382583677,-500.0,0.00024657,3]
[329469863,1718382583811,-500.0,0.00024657,3]
[329469864,1718382583891,-1760.27,0.00024657,3]
[329469865,1718382583988,-545.48,0.00024657,3]
[329469866,1718382584094,-1205.04,0.00024657,3]
[329469867,1718382584188,-765.24,0.00024657,3]
[329469868,1718382584254,-676.49,0.00024657,3]
[329469869,1718382584299,-2190.75,0.00024657,3]
[329469870,1718382584338,-500.0,0.00024657,3]
[329469871,1718382584381,-500.0,0.00024657,3]
[329469872,1718382584438,-500.0,0.00024657,3]
[329469873,1718382584529,-1364.48863573,0.00024663,2]
[329469874,1718382584646,-1840.47561552,0.00024683,2]
[329469875,1718382584721,-154.75879082,0.00024692,2]
[329469876,1718382584873,-5386.75,0.000247,2]
[329469877,1718382584921,-250000.0,0.000247,2]
[329469878,1718382585020,-151.0,0.000247,7]
[329469879,1718382585135,-2500.0,0.000247,9]
[329469880,1718382585246,-150.0,0.00024716,2]
[329469881,1718382585386,-215.0,0.0002473,2]
[329469882,1718382585501,-229.43757501,0.00024758,2]
[329469883,1718382585655,-229.43757501,0.00024759,2]
[329469884,1718382585765,-328.09084184,0.00024767,2]
[329469885,1718382585893,-500.0,0.00024794,2]
[329469886,1718382585985,-500.0,0.00024794,2]
[329469887,1718382586044,-150.0,0.00024797,2]
[329469888,1718382586349,-29660.22852843,0.00024798,2]
[329469889,1718382586431,-29660.22852841,0.00024798,2]
[329469890,1718382586558,-29660.22852841,0.00024798,2]
[329469891,1718382586637,-1799.92,0.00024798,3]
[329469892,1718382586689,-151.0,0.00024798,7]
[329469893,1718382586741,-214.236238,0.00024799,7]
[329469894,1718382586822,-11656.74820132,0.00024799,2]
[329469896,1718382586920,-11656.74820127,0.00024799,2]
[329469897,1718382587020,-11656.74820127,0.00024799,2]
[329469898,1718382587080,-11656.74820127,0.00024799,2]
[329469899,1718382587145,-1477.13,0.000248,2]
[329469900,1718382587203,-1571.91,0.000248,2]
[329469901,1718382587290,-3200.0,0.000248,9]
[329469902,1718382587349,-467.52895994,0.00024822,2]
[329469903,1718382587424,-215.0,0.00024831,2]
[329469904,1718382587478,-369.09294368,0.00024855,2]
[329469905,1718382587528,-150.0,0.00024878,2]
[329469906,1718382587604,-151.0,0.00024879,3]
[329469907,1718382587662,-154.75879082,0.00024896,2]
[329469908,1718382587721,-155.0,0.000249,2]
[329469909,1718382587772,-6803.82836973,0.000249,2]
[329469910,1718382587827,-174.05631098,0.000249,2]
[329469911,1718382587876,-291.0,0.000249,2]
[329469912,1718382587922,-1001.2,0.000249,2]
[329469913,1718382588008,-307.24,0.000249,2]
[329469914,1718382588084,-150.0,0.000249,4]
[329469915,1718382588143,-600.0,0.000249,2]
[329469916,1718382588217,-600.0,0.000249,9]
[329469917,1718382588291,-1840.47561552,0.00024906,2]
[329469918,1718382588373,-369.09294368,0.0002491,2]
[329469919,1718382588515,-150.0,0.00024914,2]
[329469920,1718382588618,-191.28471737,0.00024921,2]
[329469921,1718382588699,-38387.0265038,0.00024929,2]
[329469922,1718382588754,-500.0,0.0002493,3]
[329469923,1718382588831,-1799.92,0.0002493,3]
[329469924,1718382588911,-1799.92,0.0002493,3]
[329469925,1718382588959,-1534.66,0.0002493,3]
[329469926,1718382589016,-1824.67,0.0002493,3]
[329469927,1718382589064,-1420.59,0.0002493,3]
[329469928,1718382589119,-799.56,0.0002493,3]
[329469929,1718382589181,-3929.57,0.0002493,3]
[329469930,1718382589225,-6018.2,0.0002493,3]
[329469931,1718382589303,-1477.08,0.0002493,3]
[329469932,1718382589356,-4964.05,0.0002493,3]
[329469933,1718382589447,-7039.91,0.0002493,3]
[329469934,1718382589525,-500.0,0.0002493,3]
[329469935,1718382589593,-844.33,0.0002493,3]
[329469936,1718382589672,-857.02,0.0002493,3]
[329469937,1718382589726,-450.56667021,0.00024931,3]
[329469938,1718382589789,-1047.96675762,0.00024931,2]
[329469939,1718382589841,-35013.31820311,0.00024931,2]
[329469940,1718382589912,-500.0,0.00024931,3]
[329469941,1718382589999,-1188.89,0.00024931,3]
[329469942,1718382590071,-589.44,0.00024931,3]
[329469943,1718382590167,-820.19,0.00024931,3]
[329469944,1718382590262,-161.6572304,0.00024931,3]
[329469945,1718382590326,-500.0,0.00024931,2]
[329469946,1718382590376,-500.0,0.00024931,3]
[329469947,1718382590478,-672.8,0.00024931,3]
[329469948,1718382590586,-500.0,0.00024931,3]
[329469949,1718382590763,-598.96,0.00024931,3]
[329469950,1718382590820,-500.0,0.00024931,3]
[329469951,1718382590904,-500.0,0.00024931,3]
[329469952,1718382590975,-151.0,0.00024931,7]
[329469953,1718382591088,-824.89,0.00024931,3]
[329469954,1718382591155,-500.0,0.00024931,3]
[329469955,1718382591262,-500.0,0.00024931,3]
[329469956,1718382591343,-232.63328009,0.00024931,3]
[329469957,1718382591433,-534.58,0.00024931,3]
[329469958,1718382591555,-500.0,0.00024931,3]
[329469959,1718382591627,-355.02912688,0.00024931,3]
[329469960,1718382591696,-530.1,0.00024931,3]
[329469961,1718382591754,-500.0,0.00024931,3]
[329469962,1718382591854,-500.0,0.00024931,3]
[329469963,1718382591923,-500.0,0.00024931,3]
[329469964,1718382592037,-906.26,0.00024931,3]
[329469965,1718382592099,-500.0,0.00024931,3]
[329469966,1718382592215,-500.0,0.00024931,3]
[329469967,1718382592351,-500.0,0.00024931,3]
[329469968,1718382592574,-237.41965657,0.00024931,3]
[329469969,1718382592662,-615.06,0.00024931,3]
[329469970,1718382592781,-1914.81,0.00024931,3]
[329469971,1718382592840,-500.0,0.00024931,3]
[329469972,1718382592922,-500.0,0.00024931,3]
[329469973,1718382593000,-509.34,0.00024931,3]
[329469974,1718382593130,-500.0,0.00024931,2]
[329469975,1718382593201,-530.54766845,0.00024931,3]
[329469976,1718382593440,-500.0,0.00024931,3]
[329469977,1718382593523,-500.0,0.00024931,3]
[329469978,1718382593643,-457.59884911,0.00024931,3]
[329469979,1718382593787,-807.09,0.00024931,3]
[329469980,1718382593867,-500.0,0.00024931,3]
[329469981,1718382593928,-220.41393298,0.00024931,3]
[329469982,1718382594088,-500.0,0.00024931,3]
[329469983,1718382594184,-500.0,0.00024931,3]
[329469984,1718382594259,-500.0,0.00024931,3]
[329469985,1718382594336,-500.0,0.00024931,3]
[329469986,1718382594396,-500.0,0.00024931,3]
[329469988,1718382594474,-504.9,0.00024931,3]
[329469990,1718382594562,-500.0,0.00024931,3]
[329469992,1718382594658,-500.0,0.00024931,3]